[Event "January 2 Early 2024"]
[Site "https://www.chess.com"]
[Date "2024.01.02"]
[Round "4"]
[White "Sztokbant, Bernardo Vainzoff"]
[Black "Agibileg, Uurtsaikh"]
[Result "0-1"]
[Board "87"]
[TimeControl "180+1"]
[WhiteFideId "2115956"]
[BlackFideId "4901606"]
[WhiteElo "2434"]
[BlackElo "2684"]
[WhiteTeam "BRA"]
[BlackTeam "MGL"]
[WhiteClock "0:00:00"]
[BlackClock "0:01:36"]

1. e3 {[%clk 0:03:00]}  Nf6 {[%clk 0:02:59]} 2. d4 {[%clk 0:03:00]}  g6 {[%clk 0:02:56]} 3. c4 {[%clk 0:02:59]}  Bg7 {[%clk 0:02:56]} 4. Nf3 {[%clk 0:03:00]}  O-O {[%clk 0:02:56]} 5. Be2 {[%clk 0:03:01]}  d6 {[%clk 0:02:55]} 6. O-O {[%clk 0:03:01]}  c5 {[%clk 0:02:55]} 7. Nc3 {[%clk 0:03:01]}  Nc6 {[%clk 0:02:54]} 8. b3 {[%clk 0:03:00]}  a6 {[%clk 0:02:42]} 9. Bb2 {[%clk 0:03:00]}  Rb8 {[%clk 0:02:42]} 10. Rc1 {[%clk 0:02:59]}  Bg4 {[%clk 0:02:39]} 11. h3 {[%clk 0:02:58]}  Bf5 {[%clk 0:02:37]} 12. dxc5 {[%clk 0:02:53]}  dxc5 {[%clk 0:02:35]} 13. Qxd8 {[%clk 0:02:21]}  Rfxd8 {[%clk 0:02:33]} 14. Rfd1 {[%clk 0:02:20]}  Ne4 {[%clk 0:02:30]} 15. g4 {[%clk 0:01:56]}  Rxd1+ {[%clk 0:02:24]} 16. Bxd1 {[%clk 0:01:36]}  Nxc3 {[%clk 0:02:23]} 17. Bxc3 {[%clk 0:01:37]}  Bd3 {[%clk 0:02:20]} 18. Ne1 {[%clk 0:01:32]}  Rd8 {[%clk 0:02:18]} 19. Bf3 {[%clk 0:01:26]}  Bxc3 {[%clk 0:02:06]} 20. Rxc3 {[%clk 0:01:26]}  Bb1 {[%clk 0:02:07]} 21. a3 {[%clk 0:01:16]}  Ne5 {[%clk 0:02:07]} 22. Bxb7 {[%clk 0:01:16]}  Rd1 {[%clk 0:02:07]} 23. Kf1 {[%clk 0:01:14]}  Bd3+ {[%clk 0:02:07]} 24. Rxd3 {[%clk 0:00:51]}  Nxd3 {[%clk 0:02:06]} 25. Ke2 {[%clk 0:00:52]}  Rxe1+ {[%clk 0:02:04]} 26. Kxd3 {[%clk 0:00:52]}  Ra1 {[%clk 0:02:04]} 27. a4 {[%clk 0:00:49]}  a5 {[%clk 0:02:03]} 28. Ke4 {[%clk 0:00:29]}  Rd1 {[%clk 0:02:02]} 29. f4 {[%clk 0:00:16]}  Kf8 {[%clk 0:01:59]} 30. Bc6 {[%clk 0:00:13]}  e6 {[%clk 0:01:59]} 31. g5 {[%clk 0:00:11]}  Ke7 {[%clk 0:01:52]} 32. Kf3 {[%clk 0:00:10]}  Rb1 {[%clk 0:01:52]} 33. Ke4 {[%clk 0:00:07]}  Rxb3 {[%clk 0:01:52]} 34. Bb5 {[%clk 0:00:07]}  Rb1 {[%clk 0:01:51]} 35. Kf3 {[%clk 0:00:07]}  Rc1 {[%clk 0:01:51]} 36. Kg3 {[%clk 0:00:07]}  e5 {[%clk 0:01:46]} 37. fxe5 {[%clk 0:00:06]}  Ke6 {[%clk 0:01:46]} 38. Kf4 {[%clk 0:00:06]}  Rf1+ {[%clk 0:01:45]} 39. Ke4 {[%clk 0:00:06]}  Rh1 {[%clk 0:01:46]} 40. Bc6 {[%clk 0:00:04]}  Rxh3 {[%clk 0:01:45]} 41. Bd5+ {[%clk 0:00:05]}  Ke7 {[%clk 0:01:44]} 42. Kf4 {[%clk 0:00:04]}  Rh2 {[%clk 0:01:37]} 43. Bc6 {[%clk 0:00:03]}  Ke6 {[%clk 0:01:35]} 44. Bd5+ {[%clk 0:00:03]}  Ke7 {[%clk 0:01:35]} 45. Bc6 {[%clk 0:00:03]}  Rh4+ {[%clk 0:01:36]} 46. Kf3 {[%clk 0:00:00]}  Rxc4 {[%clk 0:01:36]} 0-1

[Event "January 2 Early 2024"]
[Site "https://www.chess.com"]
[Date "2024.01.02"]
[Round "4"]
[White "Arslanov, Shamil"]
[Black "Tiarks, Jann-Christian"]
[Result "1-0"]
[Board "88"]
[TimeControl "180+1"]
[WhiteFideId "4192826"]
[BlackFideId "12951595"]
[WhiteElo "2684"]
[BlackElo "2419"]
[WhiteTeam "RUS"]
[BlackTeam "GER"]
[WhiteClock "0:00:04"]
[BlackClock "0:00:45"]

1. d4 {[%clk 0:02:59]}  c5 {[%clk 0:02:59]} 2. Nc3 {[%clk 0:02:56]}  cxd4 {[%clk 0:02:58]} 3. Qxd4 {[%clk 0:02:55]}  Nc6 {[%clk 0:02:58]} 4. Qh4 {[%clk 0:02:36]}  d5 {[%clk 0:02:52]} 5. Nf3 {[%clk 0:02:27]}  Bf5 {[%clk 0:02:39]} 6. g3 {[%clk 0:02:04]}  Bxc2 {[%clk 0:02:35]} 7. Bg2 {[%clk 0:02:04]}  Nf6 {[%clk 0:02:34]} 8. O-O {[%clk 0:02:04]}  e6 {[%clk 0:02:34]} 9. Bg5 {[%clk 0:01:55]}  Be7 {[%clk 0:02:33]} 10. Rac1 {[%clk 0:01:41]}  Bg6 {[%clk 0:02:26]} 11. Rfd1 {[%clk 0:01:41]}  Qa5 {[%clk 0:02:20]} 12. a3 {[%clk 0:01:39]}  O-O {[%clk 0:02:12]} 13. e3 {[%clk 0:01:36]}  Rac8 {[%clk 0:02:02]} 14. Nd4 {[%clk 0:01:35]}  Nxd4 {[%clk 0:02:01]} 15. exd4 {[%clk 0:01:36]}  h6 {[%clk 0:01:55]} 16. Bd2 {[%clk 0:01:13]}  Qb6 {[%clk 0:01:45]} 17. Na4 {[%clk 0:01:06]}  Qb5 {[%clk 0:01:45]} 18. Nc5 {[%clk 0:01:02]}  Bxc5 {[%clk 0:01:44]} 19. dxc5 {[%clk 0:01:01]}  Qxb2 {[%clk 0:01:37]} 20. Bc3 {[%clk 0:00:59]}  Qxa3 {[%clk 0:01:32]} 21. Bxf6 {[%clk 0:00:57]}  gxf6 {[%clk 0:01:32]} 22. Qxf6 {[%clk 0:00:41]}  Rxc5 {[%clk 0:01:32]} 23. Ra1 {[%clk 0:00:42]}  Qc3 {[%clk 0:01:29]} 24. Qf4 {[%clk 0:00:40]}  a6 {[%clk 0:01:23]} 25. Qxh6 {[%clk 0:00:39]}  Rfc8 {[%clk 0:01:24]} 26. h4 {[%clk 0:00:37]}  Qg7 {[%clk 0:01:23]} 27. Qf4 {[%clk 0:00:36]}  Rc4 {[%clk 0:01:22]} 28. Qe3 {[%clk 0:00:35]}  Rc3 {[%clk 0:01:19]} 29. Qf4 {[%clk 0:00:34]}  R3c4 {[%clk 0:01:16]} 30. Qe3 {[%clk 0:00:34]}  Qf6 {[%clk 0:01:14]} 31. Ra2 {[%clk 0:00:16]}  Rc2 {[%clk 0:01:10]} 32. Rxc2 {[%clk 0:00:15]}  Rxc2 {[%clk 0:01:11]} 33. f4 {[%clk 0:00:16]}  Qb2 {[%clk 0:01:07]} 34. Bf3 {[%clk 0:00:13]}  a5 {[%clk 0:00:59]} 35. h5 {[%clk 0:00:13]}  Be4 {[%clk 0:00:56]} 36. Bxe4 {[%clk 0:00:11]}  dxe4 {[%clk 0:00:57]} 37. Qxe4 {[%clk 0:00:11]}  Qb6+ {[%clk 0:00:56]} 38. Kh1 {[%clk 0:00:10]}  Qf2 {[%clk 0:00:56]} 39. Rd8+ {[%clk 0:00:05]}  Kg7 {[%clk 0:00:56]} 40. Qe5+ {[%clk 0:00:03]}  f6 {[%clk 0:00:57]} 41. Rd7+ {[%clk 0:00:03]}  Kf8 {[%clk 0:00:44]} 42. Qxf6+ {[%clk 0:00:04]}  Ke8 {[%clk 0:00:45]} 43. Qf7# {[%clk 0:00:04]} 1-0

[Event "January 2 Early 2024"]
[Site "https://www.chess.com"]
[Date "2024.01.02"]
[Round "4"]
[White "Rozman, Levy"]
[Black "Begunov, Konstantin"]
[Result "0-1"]
[Board "89"]
[TimeControl "180+1"]
[WhiteFideId "2039877"]
[BlackFideId "4118510"]
[WhiteElo "2683"]
[BlackElo "2416"]
[WhiteTeam "USA"]
[BlackTeam "RUS"]
[WhiteClock "0:00:14"]
[BlackClock "0:00:06"]

1. e4 {[%clk 0:03:00]}  c5 {[%clk 0:02:58]} 2. Nc3 {[%clk 0:03:00]}  d6 {[%clk 0:02:57]} 3. d4 {[%clk 0:03:00]}  cxd4 {[%clk 0:02:57]} 4. Qxd4 {[%clk 0:03:01]}  a6 {[%clk 0:02:58]} 5. b3 {[%clk 0:02:56]}  Nc6 {[%clk 0:02:58]} 6. Qd2 {[%clk 0:02:56]}  Nf6 {[%clk 0:02:51]} 7. Bb2 {[%clk 0:02:55]}  e6 {[%clk 0:02:43]} 8. O-O-O {[%clk 0:02:54]}  Be7 {[%clk 0:02:43]} 9. f3 {[%clk 0:02:54]}  Qc7 {[%clk 0:02:31]} 10. Kb1 {[%clk 0:02:52]}  Bd7 {[%clk 0:02:30]} 11. g4 {[%clk 0:02:52]}  h6 {[%clk 0:02:30]} 12. h4 {[%clk 0:02:51]}  O-O-O {[%clk 0:02:28]} 13. Qh2 {[%clk 0:02:40]}  Kb8 {[%clk 0:02:15]} 14. Nh3 {[%clk 0:02:33]}  Ne5 {[%clk 0:02:08]} 15. Be2 {[%clk 0:02:21]}  Bc6 {[%clk 0:02:05]} 16. Rd2 {[%clk 0:02:18]}  Nfd7 {[%clk 0:01:56]} 17. f4 {[%clk 0:02:14]}  Ng6 {[%clk 0:01:47]} 18. h5 {[%clk 0:02:14]}  Ngf8 {[%clk 0:01:41]} 19. Rhd1 {[%clk 0:02:12]}  Nh7 {[%clk 0:01:38]} 20. Nd5 {[%clk 0:02:03]}  exd5 {[%clk 0:01:05]} 21. exd5 {[%clk 0:02:03]}  Bb5 {[%clk 0:01:05]} 22. c4 {[%clk 0:02:03]}  Bxc4 {[%clk 0:01:01]} 23. Bxc4 {[%clk 0:01:39]}  Bf6 {[%clk 0:00:59]} 24. Nf2 {[%clk 0:01:24]}  Bxb2 {[%clk 0:00:59]} 25. Rxb2 {[%clk 0:01:24]}  Nhf6 {[%clk 0:00:59]} 26. Qg2 {[%clk 0:01:18]}  Rde8 {[%clk 0:00:53]} 27. Rc2 {[%clk 0:01:13]}  Qb6 {[%clk 0:00:47]} 28. Bd3 {[%clk 0:01:03]}  Nc5 {[%clk 0:00:45]} 29. Bf5 {[%clk 0:01:00]}  Re3 {[%clk 0:00:43]} 30. Rb2 {[%clk 0:00:53]}  Rhe8 {[%clk 0:00:40]} 31. Rc1 {[%clk 0:00:50]}  Qb4 {[%clk 0:00:37]} 32. Nd1 {[%clk 0:00:40]}  Re1 {[%clk 0:00:29]} 33. Qc2 {[%clk 0:00:38]}  Qxf4 {[%clk 0:00:25]} 34. b4 {[%clk 0:00:38]}  Nce4 {[%clk 0:00:18]} 35. a4 {[%clk 0:00:35]}  Nxd5 {[%clk 0:00:11]} 36. Ka2 {[%clk 0:00:26]}  Rxd1 {[%clk 0:00:09]} 37. Rxd1 {[%clk 0:00:20]}  Nec3+ {[%clk 0:00:08]} 38. Ka3 {[%clk 0:00:12]}  Nxd1 {[%clk 0:00:08]} 39. Qxd1 {[%clk 0:00:13]}  Re3+ {[%clk 0:00:06]} 40. Bd3 {[%clk 0:00:08]}  Qd4 {[%clk 0:00:04]} 41. Rb3 {[%clk 0:00:06]}  Nf4 {[%clk 0:00:02]} 42. Bc2 {[%clk 0:00:01]}  Rxb3+ {[%clk 0:00:01]} 43. Kxb3 {[%clk 0:00:01]}  Qxd1 {[%clk 0:00:02]} 44. Bxd1 {[%clk 0:00:02]}  Kc7 {[%clk 0:00:01]} 45. Kc3 {[%clk 0:00:02]}  d5 {[%clk 0:00:01]} 46. Kd4 {[%clk 0:00:03]}  Kd6 {[%clk 0:00:02]} 47. Bf3 {[%clk 0:00:02]}  Ne6+ {[%clk 0:00:03]} 48. Kc3 {[%clk 0:00:03]}  b6 {[%clk 0:00:03]} 49. Be2 {[%clk 0:00:03]}  a5 {[%clk 0:00:04]} 50. Kb3 {[%clk 0:00:04]}  Ke5 {[%clk 0:00:03]} 51. Kc3 {[%clk 0:00:04]}  d4+ {[%clk 0:00:03]} 52. Kc4 {[%clk 0:00:04]}  Nf4 {[%clk 0:00:04]} 53. Bd1 {[%clk 0:00:04]}  Ke4 {[%clk 0:00:05]} 54. bxa5 {[%clk 0:00:04]}  bxa5 {[%clk 0:00:06]} 55. Kb5 {[%clk 0:00:05]}  d3 {[%clk 0:00:06]} 56. Kxa5 {[%clk 0:00:05]}  d2 {[%clk 0:00:06]} 57. Kb4 {[%clk 0:00:05]}  Nd5+ {[%clk 0:00:05]} 58. Kb3 {[%clk 0:00:05]}  Ne3 {[%clk 0:00:05]} 59. Kc3 {[%clk 0:00:06]}  Nxd1+ {[%clk 0:00:05]} 60. Kxd2 {[%clk 0:00:06]}  Ne3 {[%clk 0:00:06]} 61. Kc3 {[%clk 0:00:06]}  Nxg4 {[%clk 0:00:05]} 62. a5 {[%clk 0:00:06]}  Kd5 {[%clk 0:00:05]} 63. Kd3 {[%clk 0:00:05]}  Kc6 {[%clk 0:00:06]} 64. Ke4 {[%clk 0:00:05]}  Nf6+ {[%clk 0:00:06]} 65. Ke5 {[%clk 0:00:06]}  Nxh5 {[%clk 0:00:07]} 66. Kf5 {[%clk 0:00:07]}  Kb5 {[%clk 0:00:07]} 67. Kg4 {[%clk 0:00:07]}  Nf6+ {[%clk 0:00:06]} 68. Kf5 {[%clk 0:00:08]}  Kxa5 {[%clk 0:00:07]} 69. Ke5 {[%clk 0:00:09]}  h5 {[%clk 0:00:07]} 70. Kf5 {[%clk 0:00:09]}  Kb5 {[%clk 0:00:06]} 71. Kf4 {[%clk 0:00:10]}  Kc4 {[%clk 0:00:06]} 72. Kg5 {[%clk 0:00:11]}  Kd4 {[%clk 0:00:06]} 73. Kf4 {[%clk 0:00:12]}  Kd3 {[%clk 0:00:06]} 74. Kg5 {[%clk 0:00:13]}  Ke3 {[%clk 0:00:06]} 75. Kh4 {[%clk 0:00:14]}  Kf3 {[%clk 0:00:06]} 76. Kh3 {[%clk 0:00:14]}  g5 {[%clk 0:00:06]} 77. Kh2 {[%clk 0:00:15]}  g4 {[%clk 0:00:07]} 78. Kh1 {[%clk 0:00:15]}  g3 {[%clk 0:00:07]} 79. Kg1 {[%clk 0:00:14]}  g2 {[%clk 0:00:06]} 0-1

[Event "January 2 Early 2024"]
[Site "https://www.chess.com"]
[Date "2024.01.02"]
[Round "4"]
[White "Carre, Sylvain"]
[Black "Aldokhin, Ivan"]
[Result "1-0"]
[Board "90"]
[TimeControl "180+1"]
[WhiteFideId "642118"]
[BlackFideId "24115720"]
[WhiteElo "2412"]
[BlackElo "2679"]
[WhiteTeam "FRA"]
[BlackTeam "RUS"]
[WhiteClock "0:00:28"]
[BlackClock "0:00:00"]

1. d4 {[%clk 0:03:00]}  Nf6 {[%clk 0:02:59]} 2. Bf4 {[%clk 0:03:01]}  e6 {[%clk 0:02:56]} 3. e3 {[%clk 0:03:02]}  c5 {[%clk 0:02:54]} 4. c3 {[%clk 0:03:02]}  Nc6 {[%clk 0:02:52]} 5. Nd2 {[%clk 0:03:02]}  d5 {[%clk 0:02:49]} 6. Ngf3 {[%clk 0:03:02]}  Be7 {[%clk 0:02:44]} 7. Bd3 {[%clk 0:03:02]}  Nh5 {[%clk 0:02:44]} 8. Be5 {[%clk 0:03:01]}  c4 {[%clk 0:02:34]} 9. Bc2 {[%clk 0:02:58]}  Nxe5 {[%clk 0:02:34]} 10. Nxe5 {[%clk 0:02:58]}  g6 {[%clk 0:02:15]} 11. Ba4+ {[%clk 0:02:53]}  Kf8 {[%clk 0:02:15]} 12. Qf3 {[%clk 0:02:46]}  Nf6 {[%clk 0:01:41]} 13. e4 {[%clk 0:02:39]}  Kg7 {[%clk 0:01:27]} 14. Rd1 {[%clk 0:02:25]}  b5 {[%clk 0:01:03]} 15. Bc2 {[%clk 0:02:22]}  Bb7 {[%clk 0:01:03]} 16. h4 {[%clk 0:02:07]}  h5 {[%clk 0:01:01]} 17. Nxf7 {[%clk 0:01:53]}  Kxf7 {[%clk 0:00:25]} 18. e5 {[%clk 0:01:54]}  Kg7 {[%clk 0:00:20]} 19. exf6+ {[%clk 0:01:46]}  Bxf6 {[%clk 0:00:21]} 20. Qg3 {[%clk 0:01:33]}  Rh6 {[%clk 0:00:21]} 21. Nf3 {[%clk 0:01:33]}  Qe7 {[%clk 0:00:20]} 22. O-O {[%clk 0:01:31]}  Rf8 {[%clk 0:00:19]} 23. Rfe1 {[%clk 0:01:29]}  Bc6 {[%clk 0:00:18]} 24. Ne5 {[%clk 0:01:16]}  Be8 {[%clk 0:00:12]} 25. Nf3 {[%clk 0:01:13]}  Kh8 {[%clk 0:00:11]} 26. Re2 {[%clk 0:01:09]}  Rg8 {[%clk 0:00:06]} 27. Ng5 {[%clk 0:00:55]}  Bxg5 {[%clk 0:00:05]} 28. hxg5 {[%clk 0:00:56]}  Rh7 {[%clk 0:00:05]} 29. Rde1 {[%clk 0:00:56]}  Bd7 {[%clk 0:00:05]} 30. Qe5+ {[%clk 0:00:53]}  Qg7 {[%clk 0:00:05]} 31. g3 {[%clk 0:00:38]}  Qxe5 {[%clk 0:00:05]} 32. Rxe5 {[%clk 0:00:39]}  Rf7 {[%clk 0:00:05]} 33. f4 {[%clk 0:00:31]}  Kg7 {[%clk 0:00:05]} 34. Kg2 {[%clk 0:00:30]}  h4 {[%clk 0:00:04]} 35. Rh1 {[%clk 0:00:28]}  hxg3 {[%clk 0:00:00]} 36. Kxg3 {[%clk 0:00:28]} 1-0

[Event "January 2 Early 2024"]
[Site "https://www.chess.com"]
[Date "2024.01.02"]
[Round "4"]
[White "Andersson, Bjorn 1960"]
[Black "Weetik, Vjacheslav"]
[Result "0-1"]
[Board "91"]
[TimeControl "180+1"]
[WhiteFideId "1700545"]
[BlackFideId "4153472"]
[WhiteElo "2391"]
[BlackElo "2678"]
[WhiteTeam "SWE"]
[BlackTeam "RUS"]
[WhiteClock "0:00:15"]
[BlackClock "0:01:11"]

1. e4 {[%clk 0:03:00]}  c6 {[%clk 0:02:59]} 2. d4 {[%clk 0:03:00]}  d5 {[%clk 0:02:57]} 3. exd5 {[%clk 0:03:01]}  cxd5 {[%clk 0:02:58]} 4. Bd3 {[%clk 0:03:01]}  Nf6 {[%clk 0:02:57]} 5. c3 {[%clk 0:03:01]}  Bg4 {[%clk 0:02:57]} 6. Qb3 {[%clk 0:03:01]}  Qc7 {[%clk 0:02:58]} 7. f3 {[%clk 0:02:53]}  Bd7 {[%clk 0:02:49]} 8. Ne2 {[%clk 0:02:52]}  Nc6 {[%clk 0:02:41]} 9. Bf4 {[%clk 0:02:50]}  e5 {[%clk 0:02:39]} 10. dxe5 {[%clk 0:02:46]}  Nxe5 {[%clk 0:02:32]} 11. Bb5 {[%clk 0:02:42]}  Bd6 {[%clk 0:02:23]} 12. Bxd7+ {[%clk 0:02:41]}  Qxd7 {[%clk 0:02:16]} 13. O-O {[%clk 0:02:31]}  O-O {[%clk 0:02:15]} 14. Nd4 {[%clk 0:02:12]}  Rfe8 {[%clk 0:02:13]} 15. Nd2 {[%clk 0:02:07]}  Bc5 {[%clk 0:02:04]} 16. Kh1 {[%clk 0:01:56]}  Nd3 {[%clk 0:01:53]} 17. Bg3 {[%clk 0:01:48]}  Nh5 {[%clk 0:01:49]} 18. Rad1 {[%clk 0:01:22]}  Nxg3+ {[%clk 0:01:36]} 19. hxg3 {[%clk 0:01:22]}  Qd6 {[%clk 0:01:24]} 20. Qc2 {[%clk 0:01:06]}  Qh6+ {[%clk 0:01:21]} 21. Kg1 {[%clk 0:01:05]}  Qe3+ {[%clk 0:01:20]} 22. Kh2 {[%clk 0:01:04]}  Re6 {[%clk 0:01:15]} 23. Qxd3 {[%clk 0:00:15]}  Rh6# {[%clk 0:01:11]} 0-1

[Event "January 2 Early 2024"]
[Site "https://www.chess.com"]
[Date "2024.01.02"]
[Round "4"]
[White "Csonka, Balazs"]
[Black "Legenia, Artem"]
[Result "1-0"]
[Board "92"]
[TimeControl "180+1"]
[WhiteFideId "742910"]
[BlackFideId "14136945"]
[WhiteElo "2675"]
[BlackElo "2375"]
[WhiteTeam "HUN"]
[BlackTeam "UKR"]
[WhiteClock "0:00:07"]
[BlackClock "0:01:08"]

1. e4 {[%clk 0:03:00]}  c6 {[%clk 0:02:56]} 2. d4 {[%clk 0:03:00]}  d5 {[%clk 0:02:56]} 3. exd5 {[%clk 0:03:01]}  cxd5 {[%clk 0:02:55]} 4. c4 {[%clk 0:03:01]}  Nf6 {[%clk 0:02:54]} 5. Nc3 {[%clk 0:03:00]}  e6 {[%clk 0:02:53]} 6. Nf3 {[%clk 0:02:59]}  dxc4 {[%clk 0:02:53]} 7. Bxc4 {[%clk 0:02:59]}  a6 {[%clk 0:02:51]} 8. O-O {[%clk 0:02:56]}  b5 {[%clk 0:02:48]} 9. Bb3 {[%clk 0:02:48]}  Bb7 {[%clk 0:02:48]} 10. Re1 {[%clk 0:01:54]}  Be7 {[%clk 0:02:47]} 11. Bg5 {[%clk 0:01:41]}  O-O {[%clk 0:02:44]} 12. Qe2 {[%clk 0:01:36]}  Qb6 {[%clk 0:02:34]} 13. d5 {[%clk 0:01:25]}  b4 {[%clk 0:01:41]} 14. dxe6 {[%clk 0:01:23]}  bxc3 {[%clk 0:01:41]} 15. exf7+ {[%clk 0:01:20]}  Kh8 {[%clk 0:01:41]} 16. Qxe7 {[%clk 0:01:21]}  Nc6 {[%clk 0:01:41]} 17. Qxf6 {[%clk 0:01:21]}  cxb2 {[%clk 0:01:26]} 18. Qxb2 {[%clk 0:01:19]}  Na5 {[%clk 0:01:21]} 19. Re6 {[%clk 0:00:56]}  Qb4 {[%clk 0:01:12]} 20. Bd2 {[%clk 0:00:22]}  Qg4 {[%clk 0:01:10]} 21. h3 {[%clk 0:00:20]}  Qh5 {[%clk 0:01:09]} 22. Re5 {[%clk 0:00:09]}  Qg6 {[%clk 0:01:09]} 23. Rxa5 {[%clk 0:00:07]}  Bxf3 {[%clk 0:01:09]} 24. Rg5 {[%clk 0:00:07]}  Qf6 {[%clk 0:01:09]} 25. Qxf6 {[%clk 0:00:06]}  gxf6 {[%clk 0:01:09]} 26. Rg8+ {[%clk 0:00:06]}  Rxg8 {[%clk 0:01:09]} 27. fxg8=Q+ {[%clk 0:00:07]}  Rxg8 {[%clk 0:01:09]} 28. Bxg8 {[%clk 0:00:08]}  Kxg8 {[%clk 0:01:08]} 29. gxf3 {[%clk 0:00:07]} 1-0

[Event "January 2 Early 2024"]
[Site "https://www.chess.com"]
[Date "2024.01.02"]
[Round "4"]
[White "Spata, German"]
[Black "Gajwa Ankit"]
[Result "0-1"]
[Board "94"]
[TimeControl "180+1"]
[WhiteFideId "113026"]
[BlackFideId "5077834"]
[WhiteElo "2663"]
[BlackElo "2340"]
[WhiteTeam "ARG"]
[BlackTeam "IND"]
[WhiteClock "0:00:00"]
[BlackClock "0:00:45"]

1. Nf3 {[%clk 0:02:47]}  Nf6 {[%clk 0:02:59]} 2. d4 {[%clk 0:02:46]}  g6 {[%clk 0:02:59]} 3. Bf4 {[%clk 0:02:46]}  Bg7 {[%clk 0:03:00]} 4. e3 {[%clk 0:02:46]}  O-O {[%clk 0:03:01]} 5. h3 {[%clk 0:02:45]}  c5 {[%clk 0:03:01]} 6. c3 {[%clk 0:02:45]}  Qb6 {[%clk 0:03:01]} 7. Qb3 {[%clk 0:02:45]}  d6 {[%clk 0:03:02]} 8. Nbd2 {[%clk 0:02:42]}  Nc6 {[%clk 0:03:02]} 9. Be2 {[%clk 0:02:42]}  Be6 {[%clk 0:03:01]} 10. Qxb6 {[%clk 0:02:41]}  axb6 {[%clk 0:03:01]} 11. a3 {[%clk 0:02:41]}  Nd5 {[%clk 0:03:00]} 12. Bg3 {[%clk 0:02:37]}  cxd4 {[%clk 0:02:59]} 13. Nxd4 {[%clk 0:02:31]}  Nxd4 {[%clk 0:02:56]} 14. exd4 {[%clk 0:02:32]}  Bh6 {[%clk 0:02:53]} 15. Nf3 {[%clk 0:02:20]}  Nf4 {[%clk 0:02:50]} 16. Bxf4 {[%clk 0:02:17]}  Bxf4 {[%clk 0:02:51]} 17. O-O {[%clk 0:02:14]}  Rfc8 {[%clk 0:02:50]} 18. Bd3 {[%clk 0:02:08]}  Bd5 {[%clk 0:02:50]} 19. Rfe1 {[%clk 0:02:02]}  Bxf3 {[%clk 0:02:49]} 20. gxf3 {[%clk 0:02:03]}  e6 {[%clk 0:02:49]} 21. Be4 {[%clk 0:02:00]}  d5 {[%clk 0:02:49]} 22. Bd3 {[%clk 0:02:00]}  Kf8 {[%clk 0:02:47]} 23. Kf1 {[%clk 0:01:58]}  Ke7 {[%clk 0:02:43]} 24. Ke2 {[%clk 0:01:58]}  Kd6 {[%clk 0:02:43]} 25. Rh1 {[%clk 0:01:52]}  Re8 {[%clk 0:02:31]} 26. Bb5 {[%clk 0:01:49]}  Re7 {[%clk 0:02:29]} 27. Kd3 {[%clk 0:01:49]}  f6 {[%clk 0:02:19]} 28. Rae1 {[%clk 0:01:41]}  e5 {[%clk 0:02:20]} 29. Re2 {[%clk 0:01:35]}  Rc8 {[%clk 0:01:55]} 30. Rhe1 {[%clk 0:01:29]}  Re6 {[%clk 0:01:54]} 31. Kc2 {[%clk 0:01:23]}  Rc7 {[%clk 0:01:53]} 32. Rd1 {[%clk 0:01:09]}  Rce7 {[%clk 0:01:45]} 33. dxe5+ {[%clk 0:01:08]}  Rxe5 {[%clk 0:01:40]} 34. Rxe5 {[%clk 0:01:07]}  Rxe5 {[%clk 0:01:39]} 35. c4 {[%clk 0:00:54]}  Re2+ {[%clk 0:01:39]} 36. Kb3 {[%clk 0:00:52]}  Be5 {[%clk 0:01:32]} 37. Rxd5+ {[%clk 0:00:51]}  Ke6 {[%clk 0:01:28]} 38. Rd8 {[%clk 0:00:27]}  Rxb2+ {[%clk 0:01:27]} 39. Ka4 {[%clk 0:00:28]}  Rxf2 {[%clk 0:01:21]} 40. Rd7 {[%clk 0:00:24]}  Rxf3 {[%clk 0:01:17]} 41. Rxh7 {[%clk 0:00:24]}  Bb2 {[%clk 0:01:08]} 42. Rxb7 {[%clk 0:00:23]}  Bd4 {[%clk 0:01:02]} 43. Bd7+ {[%clk 0:00:19]}  Kd6 {[%clk 0:01:02]} 44. Kb5 {[%clk 0:00:19]}  Bc5 {[%clk 0:01:01]} 45. Bg4 {[%clk 0:00:17]}  Rxa3 {[%clk 0:00:59]} 46. Rd7+ {[%clk 0:00:16]}  Ke5 {[%clk 0:00:59]} 47. Rd5+ {[%clk 0:00:16]}  Ke4 {[%clk 0:00:58]} 48. Rd1 {[%clk 0:00:14]}  f5 {[%clk 0:00:57]} 49. Re1+ {[%clk 0:00:15]}  Kf4 {[%clk 0:00:57]} 50. Bd1 {[%clk 0:00:15]}  Rxh3 {[%clk 0:00:57]} 51. Kc6 {[%clk 0:00:14]}  Rc3 {[%clk 0:00:56]} 52. Kd5 {[%clk 0:00:14]}  Rd3+ {[%clk 0:00:54]} 53. Ke6 {[%clk 0:00:13]}  Re3+ {[%clk 0:00:49]} 54. Rxe3 {[%clk 0:00:13]}  Bxe3 {[%clk 0:00:49]} 55. Kf6 {[%clk 0:00:13]}  g5 {[%clk 0:00:44]} 56. Bc2 {[%clk 0:00:13]}  g4 {[%clk 0:00:45]} 57. Bxf5 {[%clk 0:00:13]}  g3 {[%clk 0:00:45]} 58. Bh3 {[%clk 0:00:00]}  Kf3 {[%clk 0:00:45]} 0-1

[Event "January 2 Early 2024"]
[Site "https://www.chess.com"]
[Date "2024.01.02"]
[Round "4"]
[White "Piesik, Piotr"]
[Black "Nechitaylo, Nikita"]
[Result "1-0"]
[Board "97"]
[TimeControl "180+1"]
[WhiteFideId "1136194"]
[BlackFideId "34138161"]
[WhiteElo "2658"]
[BlackElo "2306"]
[WhiteTeam "CZE"]
[BlackTeam "UKR"]
[WhiteClock "0:01:30"]
[BlackClock "0:00:04"]

1. Nf3 {[%clk 0:02:57]}  c5 {[%clk 0:03:00]} 2. e4 {[%clk 0:02:56]}  d6 {[%clk 0:02:59]} 3. Bb5+ {[%clk 0:02:56]}  Bd7 {[%clk 0:02:59]} 4. Bxd7+ {[%clk 0:02:55]}  Qxd7 {[%clk 0:03:00]} 5. c4 {[%clk 0:02:52]}  e5 {[%clk 0:02:55]} 6. O-O {[%clk 0:02:52]}  Nc6 {[%clk 0:02:54]} 7. Nc3 {[%clk 0:02:52]}  Nf6 {[%clk 0:02:49]} 8. d3 {[%clk 0:02:50]}  Be7 {[%clk 0:02:47]} 9. Bg5 {[%clk 0:02:50]}  Nh5 {[%clk 0:02:45]} 10. Be3 {[%clk 0:02:50]}  O-O {[%clk 0:02:42]} 11. Nxe5 {[%clk 0:02:42]}  dxe5 {[%clk 0:02:22]} 12. Qxh5 {[%clk 0:02:42]}  Qxd3 {[%clk 0:02:23]} 13. Rad1 {[%clk 0:02:35]}  Qxc4 {[%clk 0:02:21]} 14. Rd7 {[%clk 0:02:35]}  g6 {[%clk 0:01:59]} 15. Qg4 {[%clk 0:02:23]}  f5 {[%clk 0:01:47]} 16. Qh3 {[%clk 0:02:20]}  f4 {[%clk 0:01:23]} 17. Bc1 {[%clk 0:02:00]}  Rf7 {[%clk 0:00:57]} 18. Nd5 {[%clk 0:01:46]}  Rd8 {[%clk 0:00:10]} 19. Qe6 {[%clk 0:01:30]}  Rxd7 {[%clk 0:00:09]} 20. Nxe7+ {[%clk 0:01:30]}  Rxe7 {[%clk 0:00:04]} 21. Qxc4 {[%clk 0:01:30]} 1-0